Cogmind - Beta 16 @@@ ROGUE MODE // 2025.12.28 @ 15:20:57 Player: Arttano Result: Self-destructed Performance ------------- Evolutions (3) 1500 Regions Visited (6) 1200 Robots Destroyed (54) 270 Value Destroyed (1572) 1572 Prototype IDs (28) 560 Alien Tech Used (0) 0 Bonus (300) 300 TOTAL SCORE: 5402 Bonus ------- Aligned with FarCom 300 Cogmind --------- Core Integrity 84/700 Matter 237/300 Energy 964/1740 System Corruption 15% Temperature Cool (0) Movement Core (250) Ox4 Location -7/Factory Parts ------- > --- POWER (1) -------- Nuclear Core > --- PROPULSION (4) --- (None) > --- UTILITY (6) ------ Superbattery Transport Network Coupler Advanced ECM Suite Hacking Suite Hacking Suite > --- WEAPON (2) ------- (None) > --- INVENTORY (5) ---- Hacking Suite Peak State ------------ > --- POWER ------------ Nuclear Core > --- PROPULSION ------- Improved Flight Unit Improved Flight Unit Improved Flight Unit Improved Flight Unit > --- UTILITY ---------- Medium Storage Unit Advanced Weight Redist. System Improved Terrain Scanner Advanced ECM Suite Reaction Control System Hacking Suite > --- WEAPON ----------- High-powered Shotgun Maul > --- INVENTORY -------- Light Nuclear Core Light Nuclear Core Light Nuclear Core VSS Leg Superbattery Minigun Gauss Rifle Advanced EMP Blaster [Rating: 40] Favorites ----------- Power Nuclear Core Engine Ion Engine Power Core Nuclear Core Propulsion Aluminum Leg Leg Aluminum Leg Flight Unit Improved Flight Unit Utility Medium Storage Unit Device Advanced ECM Suite Storage Medium Storage Unit Processor Transport Network Coupler Hackware Hacking Suite Protection Hardened Light Armor Plating Weapon Light Assault Rifle Energy Gun Particle Gun Ballistic Gun Light Assault Rifle Ballistic Cannon Flak Cannon Launcher Grenade Launcher Impact Weapon Maul Build | -11 -10 -10 -10 -9 -8 -7 ------- Run | Yrd Mat Min Exi Min Mat Fac Slots Evolved 6 | . . . . . 4 2 Power . | . . . . . . . Propulsion 2 | . . . . . 2 . Utility 4 | . . . . . 2 2 Weapon . | . . . . . . . Parts Attached 51 | 7 4 1 2 2 23 12 Power 7 | 1 . . 1 . 2 3 Engine 2 | 1 . . 1 . . . Core 5 | . . . . . 2 3 Reactor . | . . . . . . . Propulsion 17 | 2 1 . 1 1 8 4 Treads . | . . . . . . . Leg 13 | 2 1 . 1 1 8 . Wheel . | . . . . . . . Hover . | . . . . . . . Flight 4 | . . . . . . 4 Utility 16 | 2 2 . . 1 6 5 Device 7 | 1 1 . . . 3 2 Storage 3 | 1 1 . . . . 1 Processor 1 | . . . . . . 1 Hackware 2 | . . . . . 1 1 Protection 3 | . . . . 1 2 . Artifact . | . . . . . . . Weapon 11 | 2 1 1 . . 7 . Energy Gun 1 | . . . . . 1 . Energy Cannon . | . . . . . . . Ballistic Gun 6 | 2 . 1 . . 3 . Ballistic Cannon 1 | . . . . . 1 . Launcher 2 | . 1 . . . 1 . Special Weapon . | . . . . . . . Impact Weapon 1 | . . . . . 1 . Slashing Weapon . | . . . . . . . Piercing Weapon . | . . . . . . . Special Melee Weapon . | . . . . . . . Unidentified Prototypes 1 | . . . . . 1 . Parts Lost 25 | . . 3 . . 9 13 Power 5 | . . 1 . . 1 3 Propulsion 6 | . . . . . 2 4 Utility 7 | . . . . . 3 4 Weapon 7 | . . 2 . . 3 2 Highest Loss Streak 8 | . . 3 . . 4 8 To Critical Strikes . | . . . . . . . Average Backups 8 | 4 8 10 7 6 8 9 Power 1 | 1 2 2 1 1 1 2 Propulsion 1 | 1 2 3 3 2 1 . Utility 2 | . 2 3 3 3 3 2 Weapon 2 | . 1 2 . . 2 3 Tool/Special . | . . . . . . . Unused Backups 13 | . 5 . . 1 5 2 Power 4 | . 1 . . . 3 . Propulsion 2 | . 2 . . . . . Utility 5 | . 2 . . 1 . 2 Weapon 2 | . . . . . 2 . Tool/Special . | . . . . . . . Average Slot Usage (%) 91 | . 99 96 99 100 89 85 Engine 4 | . 13 12 14 14 2 . Core 4 | . . . . . 6 6 Leg 26 | . 27 28 28 28 35 11 Flight 4 | . . . . . . 16 Device 12 | . 14 14 14 3 10 18 Storage 9 | . 14 14 14 14 9 6 Processor 1 | . . . . . . 3 Hackware 3 | . . . . . 2 8 Protection 3 | . . . . 10 5 . Ballistic Gun 13 | . 24 21 27 28 11 4 Ballistic Cannon 1 | . . . . . 3 . Impact Weapon 1 | . . . . . . 5 Peak Build Rating 40 | 8 8 8 9 10 36 40 Average Rating 23 | 5 7 7 8 9 27 33 On Entrance 10 | . 8 8 5 9 9 36 Avg Prop Armor Cover (%) . | . . . . . . . Naked Turns . | . . . . . . . Heaviest Build 36 | 11 18 18 18 22 36 28 Greatest Support 61 | 20 20 20 20 20 61 61 Greatest Overweight (x) 6 | . 2 . . 1 . 6 Average Overweight (x) . | . . . . . . . Largest Inventory Capacity 10 | 8 10 10 10 10 10 10 Average Capacity 9 | 7 8 10 10 10 10 9 Most Carried 10 | 8 10 10 9 9 10 10 Average Carried 8 | 4 8 10 7 6 8 9 Final Capacity 10 | 8 10 10 10 10 10 5 Final Carried 10 | 8 10 10 8 6 9 1 Class Distribution -------------------- 63% | Mutant 12% | Scavenger-Scout 10% | Scavenger-Skirmisher 5% | Scavenger-Assassin Dominant Class ---------------- Mutant | -10/Materials Mutant | -10/Mines Mutant | -10/Exiles Mutant | -9/Mines Mutant | -8/Materials Scavenger-Scout | -7/Factory Resources | -11 -10 -10 -10 -9 -8 -7 ----------- Run | Yrd Mat Min Exi Min Mat Fac Matter Collected 1800 | 294 124 . . 98 995 289 Remotely . | . . . . . . . Salvage Created 1877 | 106 188 . . 97 870 616 Parts 110 | 8 15 . . 6 56 25 Haulers Intercepted 4 | . 1 . . . 2 1 Recyclers Shooed 2 | . . . . . 2 . Parts Field Recycled . | . . . . . . . Retrieved Matter . | . . . . . . . Parts Self-Destructed . | . . . . . . . Prevented . | . . . . . . . Parts Restored . | . . . . . . . Kills | -11 -10 -10 -10 -9 -8 -7 ------- Run | Yrd Mat Min Exi Min Mat Fac Combat Hostiles Destroyed 32 | . 3 . . 2 21 6 Melee 2 | . . . . . . 2 Guns 21 | . 3 . . 2 14 2 Cannons 7 | . . . . . 7 . Classes Destroyed 15 | 2 3 1 . 1 6 2 Worker 3 | . . . . . . 3 Builder 4 | . . 1 . . 1 2 Tunneler 2 | 1 . . . . 1 . Hauler 4 | . 1 . . . 2 1 Recycler 4 | 1 1 . . . . 2 Operator 2 | . . . . . 1 1 Watcher 3 | . 1 . . . 2 . Swarmer 6 | . 3 . . . 3 . Grunt 16 | . . . . 2 11 3 Brawler 1 | . . . . . 1 . Sentry 3 | . . . . . 2 1 Specialist 2 | . . . . . 2 . Hunter 1 | . . . . . 1 . Programmer 2 | . . . . . . 2 Heavy 1 | . . . . . 1 . Best Kill Streak 6 | 1 2 1 . 2 6 4 Combat Bots Only 6 | . 2 . . 2 6 2 Max Kills in Single Turn 2 | 1 1 1 . 1 2 1 Gunslinging . | . . . . . . . Exploded . | . . . . . . . Melee 1 | . . . . . . 1 Uniques/NPCs Destroyed . | . . . . . . . Combat | -11 -10 -10 -10 -9 -8 -7 -------- Run | Yrd Mat Min Exi Min Mat Fac Hostile Shots Fired 371 | . 18 6 . 22 155 170 Missed 138 | . 5 1 . 8 49 75 Hits 233 | . 13 5 . 14 106 95 Projectile 233 | . 13 5 . 14 106 95 AOE 6 | . . 6 . . . . Critical Strikes 6 | . . . . . 4 2 Damage Taken 3582 | . 114 253 . 169 1588 1458 Core 962 | . 10 66 . 22 248 616 Absorbed by Shields . | . . . . . . . Core Remaining (%) 71 | 100 . . . 60 54 . Volleys Fired 170 | 12 18 3 . 10 105 22 Largest 2 | 2 2 2 . 2 2 2 Hottest 62 | 40 50 50 . 40 62 53 Shots Fired 311 | 24 36 4 . 20 191 36 Gun 258 | 24 34 3 . 20 146 31 Cannon 45 | . . . . . 45 . Launcher 8 | . 2 1 . . . 5 Special . | . . . . . . . Kinetic 303 | 24 34 3 . 20 191 31 Thermal . | . . . . . . . Explosive 3 | . 2 1 . . . . Electromagnetic 5 | . . . . . . 5 Robot Hit Streak 24 | 4 9 6 . 8 24 5 Robot Miss Streak 6 | 1 3 . . 2 6 4 Penetration Max 1 | . . . . . . 1 Secondary Targets 1 | . . . . . 1 . Max Gunslinging Chain 1 | . . . . . 1 . Shots Hit Robots 227 | 18 17 2 . 14 141 35 Core Hits 126 | 5 10 5 . 7 86 13 Critical Kills 3 | . . . . . . 3 Critical Parts Destroyed 8 | . . . . . 2 6 Critical Strikes 11 | . . . . . 2 9 Destroy 2 | . . . . . 2 . Smash 9 | . . . . . . 9 Melee Attacks 61 | . . . . . 8 53 Impact 61 | . . . . . 8 53 Slashing . | . . . . . . . Piercing . | . . . . . . . Sneak Attacks 8 | . . . . . . 8 Combat Hostiles . | . . . . . . . Follow-up Attacks . | . . . . . . . Damage Inflicted 4091 | 139 146 58 . 106 2151 1491 Guns 2152 | 139 146 17 . 106 1427 317 Cannons 717 | . . . . . 717 . Explosions 115 | . . 41 . . . 74 Melee 1100 | . . . . . . 1100 Ramming 7 | . . . . . 7 . Kinetic 2869 | 139 146 17 . 106 2144 317 Thermal . | . . . . . . . Explosive 41 | . . 41 . . . . Electromagnetic 74 | . . . . . . 74 Impact 1100 | . . . . . . 1100 Slashing . | . . . . . . . Piercing . | . . . . . . . Highest Corruption 15 | . . . . . 1 15 Average Corruption 1 | . . . . . 1 6 Corruption Purged . | . . . . . . . Corruption Blocked . | . . . . . . . Effects 15 | . . . . . 9 6 Message Errors 3 | . . . . . 2 1 Matter Fused 6 | . . . . . 4 2 Heat Flow Errors 1 | . . . . . . 1 Energy Discharges 3 | . . . . . 2 1 Data Loss (major) 1 | . . . . . 1 . Weapon Failures 1 | . . . . . . 1 Overload Shots . | . . . . . . . Overflow Damage 549 | . . . . . . 549 Projectiles . | . . . . . . . Explosions . | . . . . . . . Melee 549 | . . . . . . 549 Knockbacks 28 | . . . . . 24 4 Impact 4 | . . . . . . 4 Kinetic 23 | . . . . . 23 . Secondary 1 | . . . . . 1 . Self-Inflicted Damage 13 | . . . . . . 13 Shots 1 | . . . . . . 1 Rammed . | . . . . . . . Targets Rammed 1 | . . . . . 1 . Kicked 1 | . . . . . 1 . Crushed . | . . . . . . . Highest Temperature 174 | . 10 10 . 100 174 142 Average Temperature 34 | . 7 7 . 55 32 55 Received Heat Transfer 834 | . . . . 93 630 111 Siege Activations . | . . . . . . . Martial Activations . | . . . . . . . Shielding Activations . | . . . . . . . Robots Disrupted 1 | . . . . . . 1 Combat Hostiles 1 | . . . . . . 1 Robots Corrupted 4 | . . . . . . 4 Combat Hostiles 2 | . . . . . . 2 Parts Fried 8 | . . . . . . 8 Impact Corruptions 17 | . . . . . . 17 Robots Melted . | . . . . . . . Combat Hostiles . | . . . . . . . Parts Melted . | . . . . . . . Heat Transferred . | . . . . . . . Parts Sabotaged . | . . . . . . . Parts Stolen . | . . . . . . . Parts Stripped . | . . . . . . . Power Chain Reactions . | . . . . . . . Alert | -11 -10 -10 -10 -9 -8 -7 ------- Run | Yrd Mat Min Exi Min Mat Fac Maximum Alert Level 1 | . . . . . . 1 Low Security (%) 98 | 100 100 100 . 100 100 96 Level 1 1 | . . . . . . 3 Level 2 . | . . . . . . . Level 3 . | . . . . . . . Level 4 . | . . . . . . . Level 5 . | . . . . . . . High Security . | . . . . . . . Max Security . | . . . . . . . Peak Influence 231 | 5 73 5 . 40 194 231 Initial 56 | . . . . . . 56 Average 57 | . 10 . . 5 96 40 Influence Increases 1516 | 10 128 5 . 50 722 601 Destroy 0b10 Robot/C 640 | . 60 . . 40 420 120 Destroy 0b10 Robot/NC 110 | 10 15 5 . . 35 45 Destroy Leader 174 | . 14 . . 10 108 42 Successful Hack 66 | . 11 . . . 22 33 Disable Machine 90 | . 15 . . . 60 15 Destroy Structure 61 | . 13 . . . 17 31 Lose Combat Pursuer 375 | . . . . . 60 315 Influence Decreases 1403 | 10 128 5 . 50 597 613 Entered New Map 69 | . . . . . . 69 Time Decay 1009 | 10 128 . . 50 507 314 Search Patrol Dispatched 100 | . . . . . . 100 Lost Part 225 | . . 5 . . 90 130 Squads Dispatched 19 | . 1 . . . 8 10 Investigation 8 | . . . . . 3 5 Extermination 2 | . . . . . . 2 Reinforcement 9 | . 1 . . . 5 3 Assault . | . . . . . . . Garrison . | . . . . . . . Intercept . | . . . . . . . Searches Triggered 1 | . . . . . . 1 Construction Impeded 1 | . . . . . . 1 Haulers Reinforced 1 | . . . . . . 1 Active Scanning Responses . | . . . . . . . Cargo Convoy Interrupts 1 | . . . . . . 1 Stealth | -11 -10 -10 -10 -9 -8 -7 --------- Run | Yrd Mat Min Exi Min Mat Fac Distress Signals 11 | . 3 . . . 6 2 Communications Jammed . | . . . . . . . Distress Signals . | . . . . . . . Times Spotted 80 | . 4 2 . 2 41 31 Peak Tracking Total 8 | . 2 2 . 2 8 8 Tactical Retreats 14 | . . . . . 5 9 ECM-based Alert Blocks 4 | . . . . . 2 2 Traps | -11 -10 -10 -10 -9 -8 -7 ------- Run | Yrd Mat Min Exi Min Mat Fac Traps Triggered 6 | . 1 . . . 4 1 Indirectly . | . . . . . . . Trap Hack Attempts . | . . . . . . . Triggered . | . . . . . . . Disarmed . | . . . . . . . Reprogrammed . | . . . . . . . Reused . | . . . . . . . Traps Extracted . | . . . . . . . Installed . | . . . . . . . Triggered . | . . . . . . . Machines | -11 -10 -10 -10 -9 -8 -7 ---------- Run | Yrd Mat Min Exi Min Mat Fac Machines Disabled 6 | . 1 . . . 4 1 Max in Single Turn 1 | . 1 . . . 1 1 Machines Repaired . | . . . . . . . Machines Dismantled . | . . . . . . . Machines Sabotaged . | . . . . . . . Overloaded Fab Kills . | . . . . . . . Hacking | -11 -10 -10 -10 -9 -8 -7 --------- Run | Yrd Mat Min Exi Min Mat Fac Machines Accessed 18 | . 5 . 1 . 5 7 Terminals 15 | . 5 . . . 5 5 Fabricators 2 | . . . . . . 2 Repair Stations . | . . . . . . . Recycling Units . | . . . . . . . Scanalyzers . | . . . . . . . Garrison Access . | . . . . . . . Total Hacks 53 | . 12 . 1 . 17 23 Successful 22 | . 2 . 1 . 5 14 Failed 31 | . 10 . . . 12 9 Catastrophic 3 | . 2 . . . . 1 Database Lockouts . | . . . . . . . Manual 37 | . 9 . 1 . 13 14 Terminals 47 | . 12 . . . 17 18 Fabricators 5 | . . . . . . 5 Repair Stations . | . . . . . . . Recycling Units . | . . . . . . . Scanalyzers . | . . . . . . . Garrison Access . | . . . . . . . Terminal Hacks 18 | . 2 . 1 . 5 10 Record 3 | . . . . . 1 2 Part Schematic 3 | . . . . . 2 1 Robot Analysis 1 | . . . . . 1 . Prototype ID Bank 2 | . 1 . . . . 1 Open DSF 1 | . . . . . . 1 Emergency Access Points 2 | . . . . . . 2 Terminal Index 1 | . . . . . . 1 Fabricator Index 1 | . . . . . . 1 Unreport Threat 1 | . . . . . . 1 Hauler Manifests 2 | . 1 . . . 1 . Proto ID Catalog 1 | . . . 1 . . . Fabricator Hacks 4 | . . . . . . 4 Load Schematic 2 | . . . . . . 2 Build 2 | . . . . . . 2 Repair Station Hacks . | . . . . . . . Recycling Unit Hacks . | . . . . . . . Scanalyzer . | . . . . . . . Garrison Access Hacks . | . . . . . . . Unauthorized Hacks . | . . . . . . . Terminals . | . . . . . . . Fabricators . | . . . . . . . Repair Stations . | . . . . . . . Recycling Units . | . . . . . . . Scanalyzers . | . . . . . . . Garrison Access . | . . . . . . . Data Cores Recovered . | . . . . . . . Used . | . . . . . . . Hacking Detections 13 | . 3 . . . 4 6 Full Trace Events 7 | . 2 . . . 1 4 Feedback Events . | . . . . . . . Feedback Blocked . | . . . . . . . Robot Schematics Acquired . | . . . . . . . Robots Built . | . . . . . . . Authchips . | . . . . . . . Time . | . . . . . . . Total Robot Build Rating . | . . . . . . . Part Schematics Acquired 2 | . . . . . 1 1 Parts Built 2 | . . . . . . 2 Authchips . | . . . . . . . Time 72 | . . . . . . 72 Total Part Build Rating 6 | . . . . . . 6 Part Studies Acquired . | . . . . . . . Parts Repaired . | . . . . . . . Time . | . . . . . . . Parts Recycled . | . . . . . . . Recycled Matter . | . . . . . . . Retrieved Matter . | . . . . . . . Retrieved Components . | . . . . . . . Parts Scanalyzed . | . . . . . . . Part Schematics Acquired . | . . . . . . . Parts Damaged . | . . . . . . . Bothacking | -11 -10 -10 -10 -9 -8 -7 ------------ Run | Yrd Mat Min Exi Min Mat Fac Used RIF Installer . | . . . . . . . Robots Hacked . | . . . . . . . Non-combat . | . . . . . . . Combat . | . . . . . . . Robot Hacks Applied . | . . . . . . . Relay Couplers Released . | . . . . . . . Fabnet Peak Effective % . | . . . . . . . Robots Rewired . | . . . . . . . Allies Hacked . | . . . . . . . Hacks Repelled . | . . . . . . . Allies | -11 -10 -10 -10 -9 -8 -7 -------- Run | Yrd Mat Min Exi Min Mat Fac Total Allies . | . . . . . . . Largest Group . | . . . . . . . Highest-Rated Group . | . . . . . . . Highest-Rated Ally . | . . . . . . . Total Orders . | . . . . . . . Ally Attacks . | . . . . . . . Total Damage . | . . . . . . . Kills . | . . . . . . . Allies Corrupted . | . . . . . . . Allies Melted . | . . . . . . . Intel | -11 -10 -10 -10 -9 -8 -7 ------- Run | Yrd Mat Min Exi Min Mat Fac Active Infowar (turns) 3063 | 26 602 124 279 88 579 1365 Sensors 826 | . 335 124 279 88 . . Terrain 1608 | . . . . . 338 1270 Seismic 293 | 26 267 . . . . . T.N.C. 783 | . . . . . . 783 ECM 291 | . . . . . 241 50 Robot Analysis Total 1 | . . . . . 1 . Derelict Logs Recovered 1 | . . . . 1 . . Drone Launches . | . . . . . . . Drone Recoveries . | . . . . . . . Exploration | -11 -10 -10 -10 -9 -8 -7 ------------- Run | Yrd Mat Min Exi Min Mat Fac Turns Passed 5063 | 116 602 124 279 382 2195 1365 Spaces Moved 3882 | 56 412 96 226 198 1280 1614 Core 38 | 6 1 . . . . 31 Treads . | . . . . . . . Legs 2598 | 50 411 96 226 198 1280 337 Wheels . | . . . . . . . Hover . | . . . . . . . Flight 1246 | . . . . . . 1246 Fastest Speed 31 | 50 120 120 120 120 110 31 Average Speed 93 | 112 120 120 120 166 119 52 Slowest Speed 390 | 120 150 120 120 190 125 390 Overloaded Moves . | . . . . . . . Propulsion Burnouts . | . . . . . . . Robots Hopped . | . . . . . . . Potential Cave-ins . | . . . . . . . Cave-ins Triggered . | . . . . . . . Exploration Rate (%) 37 | 5 63 27 43 31 68 26 Regions Visited 6 Branch Regions 3 Pre-discovered Areas . | . . . . . . . Known Exits Taken . | . . . . . . . Unknown Exits Taken 6 | 1 1 1 1 1 1 . Scrap Searched 1 | . . . . 1 . . Spaces Dug 39 | . . . . . 8 31 Terrain Destroyed 52 | . 13 . . . 8 31 Melee 39 | . . . . . 8 31 Projectile . | . . . . . . . AOE 13 | . 13 . . . . . Terrain Rammed . | . . . . . . . Walls Destroyed . | . . . . . . . Machines Disabled . | . . . . . . . Actions | -11 -10 -10 -10 -9 -8 -7 --------- Run | Yrd Mat Min Exi Min Mat Fac Total 4893 | 86 490 100 233 235 1755 1994 Wait 645 | 4 40 . 3 21 300 277 Move 3876 | 55 411 95 225 197 1279 1614 Hop . | . . . . . . . Pick Up 38 | 8 7 . 1 1 18 3 Fast Attach 21 | 7 3 . . . 5 6 Attach 20 | . . . 3 . 9 8 Detach 2 | . . . . . . 2 Swap 30 | . 4 2 1 2 17 4 Drop 29 | . 7 . . 4 13 5 Fire 170 | 12 18 3 . 10 105 22 Melee 61 | . . . . . 8 53 Ram . | . . . . . . . Kick 1 | . . . . . 1 . Crush . | . . . . . . . Escape Stasis . | . . . . . . . Rewire . | . . . . . . . Trap . | . . . . . . . Miscellaneous . | . . . . . . . Route ------- -11/Scrapyard -10/Materials (discovered 2 exits: [*Mat] / [*Min]) -10/Mines (discovered 2 exits: [*Mat] / *Exi) -10/Exiles -9/Mines -8/Materials (discovered 2 exits: *Fac x2) -7/Factory (discovered 2 exits: [*Fac] / [*Low]) History --------- Turn | Location | Event 2 | -11/Scrapyard | Met Revision 17 5 | -11/Scrapyard | Discovered new exit (range 16) 117 | -11/Scrapyard | Entered Materials 118 | -10/Materials | Met a group of wandering Federalists 344 | -10/Materials | Build established: Mutant 414 | -10/Materials | Discovered new exit (range 6) 561 | -10/Materials | Discovered new exit (range 8) 719 | -10/Materials | Entered Mines 721 | -10/Mines | Met a Derelict bent on vengeance 746 | -10/Mines | Discovered new exit (range 8) 818 | -10/Mines | Assembled infested the area 823 | -10/Mines | Assisted by a Guerilla fighting off Assembled 836 | -10/Mines | Discovered new exit (range 7) 838 | -10/Mines | Deemed a non-threat by the Exiles lab entrance 843 | -10/Mines | Entered Exiles 869 | -10/Exiles | Lost 3 parts (1p2w) 876 | -10/Exiles | Met 8R-AWN 898 | -10/Exiles | Met EX-HEX 937 | -10/Exiles | Met EX-BIN 951 | -10/Exiles | Aligned with FarCom system 952 | -10/Exiles | Given EX-Vault access code 982 | -10/Exiles | Opened EX-Vault 993 | -10/Exiles | Found Superbattery 1021 | -10/Exiles | Warned to stay clear of 0b10 Research branches 1106 | -10/Exiles | Discovered new exit (range 15) 1122 | -10/Exiles | Left Exiles lab with Superbattery 1122 | -10/Exiles | Entered Mines 1163 | -9/Mines | Learned 4 Materials zone layouts 1432 | -9/Mines | Discovered new exit (range 6) 1504 | -9/Mines | Entered Materials 1504 | -8/Materials | Evolved 4 slots: Propulsion x2, Utility x2 1776 | -8/Materials | Lost 3 parts (1n1u1w) 1847 | -8/Materials | Discovered new exit (range 3) 2610 | -8/Materials | Discovered new exit (range 7) 2688 | -8/Materials | Lost 4 parts (1p1n1u1w) 3699 | -8/Materials | Entered Factory 3699 | -7/Factory | Evolved 2 slots: Utility x2 3889 | -7/Factory | Build established: Scavenger-Skirmisher 4568 | -7/Factory | Build established: Scavenger-Scout 4755 | -7/Factory | Discovered new exit (range 13) 4759 | -7/Factory | Fabricated Hacking Suite? 4780 | -7/Factory | Cargo convoy interrupted 4782 | -7/Factory | Fabricated Hacking Suite? 4899 | -7/Factory | Search patrols dispatched 4919 | -7/Factory | Discovered new exit (range 16) 4979 | -7/Factory | Core integrity fell below 50% 4986 | -7/Factory | System corruption reached 10% 5029 | -7/Factory | Lost 8 parts (1p4n2u1w) 5054 | -7/Factory | Core integrity fell below 20% 5064 | -7/Factory | Self-destructed Last Messages --------------- 05001_ R-06 Scavenger collects Target Analyzer. 05009_ Door malfunctions. 05015_ U-05 Engineer lays Concrete. 05019_ ALERT: Construction progress impeded, dispatching reinforcements to local area. 05019_ P-60 Hacker resets U-05 Engineer, system corruption cleaned. 05020_ System corrupted: Adv. EMP Blaster failed to launch. 05024_ P-60 Hacker shuts down. 05024_ Destroyed Structural Scanner. 05026_ U-05 Engineer lays Concrete. 05041_ P-60 Hacker reactivates. 05041_ U-05 Engineer lays Concrete. 05047_ Adv. EMP Blaster destroyed. 05047_ U-05 Engineer repairs door. 05049_ System corrupted: Matter fused (-8). 05049_ U-05 Engineer lays Concrete. 05059_ Imp. Terrain Scanner destroyed. 05064_ 5N>M9B%C7PUZ,VH/T 8WG# PNAF>QQW8/ IQ Map ----- +----------------------------------------------------+ | ########? ????? ?????????????????????????????????? | | #? ????? ?????????????????????????????????? | | ## #???? ?????????????????????????????????? | | ## #???? ?????????????????????? ??????????? | | ## #???# #???????????????????? ???????? | | ## #???# #???????????????????? ?????? | | ## #???# #???????????????????? ????? | | ## ##### #???????????????????? ????? | | ######## #????????????????#### ""????? | | #?????#T #?#?????????????? """???? | | ######## ########??#??????# """???? | | +?????????# ????? | | ##### ##+##### ######## ????????# ?????? | | #???# # # #????????????????# ???????? | | ##???# # # #??????????????? # ^#?????????? | | ##???# # # #?????????????#### #?????????? | | #???# # ]! # #??????????#### #?????????? | | #???# + !! # #??????????# #?????????? | | #???# # # #?#????????# g #?????????? | | #???# ######## #?##########+#######%###?????????? | | #???# #??????# #?# p #???#=#???????????? | | #???# #??????#[#?# u #???#g##??????????? | | #?#?# ########%#?# #???# [#??????????? | | ##??# #?# #???#a##??????????? | | #"#### ##### #?# #???#=#??????????#? | | ##!#???# #?# @ #???#=#???????????? | | ##=###?# #?# #???#%#???????????? | | ##[#???# #?# #???# ##??????????? | | ##%#???# #?# #???#%#????????#??? | | ##[#???# #?# ##??# #?????? #??? | | ##=#???# #?# #???# #???? #??? | | ## #??## #?# #???# #??! #??? | | ##"### #???# #?#####+#+########## # [ #??? | | ## ### #####g##/####### a/ #??? | | ### ## g g # ######## #""" """ #??? | | ### ## "" """ # #??????# #?? ""?????? | | ### ## """ + #??????# #????""?????# | | ### ## / """ # #??????# #???????????? | | # # ## # #????#?# #???????????? | | ## ## # #??????# #???????????? | | # # ################ #??????# #???????????? | | ### ###### #??????# #???????????? | | + % #??????? ????????????? | | ! ########## """ #????#??/??????? ??? | | #????????######## """ #??????? ????# ??? | | =#???#???#???????# """ #????#?? ??"??# ??? | | ########???????##### #????# ???? # ??? | | #???????# "" #????? ??? # ??? | | #???????# """ #????? # ??? | | #???????# "F #?????? """ # ??? | +----------------------------------------------------+ Best States ------------- Heat Dissipation 34 Energy Generation 14 Energy Capacity 1740 Matter Stores 300 Matter Capacity 300 Sight Range 16 Robot Scan Range 14 Terrain Scan Range 16 Terrain Scan Density 10 ECM Strength 2 Armor Coverage 375 Evasion (%) 71 Offensive Hacking 20 Item Schematics ----------------- Hacking Suite | -8/Materials | Hacked Imp. Flight Unit | -7/Factory | Hacked Robot Schematics ------------------ None Fabricated ------------ Hacking Suite | x1 | -7/Factory Hacking Suite | x1 | -7/Factory Repaired ---------- Nothing Studied --------- None Alien Tech Used ----------------- None Achievements -------------- Insider Info Jackpot Party Time Suspicious You Again Challenges ------------ None Game ------ Seed ArchitectAluminumReplica Manual? 0 Play Time 01:13:29 Cumulative 9.8 hours Start 2025.12.27 @ 18:02:00 End 2025.12.28 @ 15:20:57 Sessions 5 Manual Loads 0 Difficulty Rogue Special Mode None Game No. 12 Rogue 12 Adventurer 0 Explorer 0 Win Type - Total 0 Types 0/0/0/0/0/0/0/0/0/0 Lore% 11 Gallery% 10 Achievement% 13 Wizard Run 0 Options --------- Layout 2 ASCII 0 Keyboard 1 Movement Numpad Keybinds 0 Fullscreen 2 Font 24/Terminus Map View 50x44 Zoom Use 0% Tactical HUD 1 Map Filters NONE Filters NONE Steam 1 RUN: 4adc22c4-142d-40aa-af75-ecf350b3ba26